bitfinex/quotes_ETHUSD_20250622
["timestamp","ask_amount","ask_price","bid_price","bid_amount"]
[1750625015154,1.5928,2169.9,2169.2,11.3698677]
[1750625015317,1.5928,2169.9,2169.5,11.3698677]
[1750625015518,1.5928,2169.9,2169.6,0.0569]
[1750625015713,1.5928,2169.9,2169.6,4.66603869]
[1750625015940,1.5928,2169.9,2169.6,0.0569]
[1750625016251,0.2278773,2170.5,2169.8,11.3698677]
[1750625016411,0.2278773,2170.5,2169.9,11.30163677]
[1750625016611,0.2278773,2170.5,2169.9,15.91009305]
[1750625016811,0.2278773,2170.5,2169.9,11.30163677]
[1750625017029,1.6029,2170.4,2170.0,0.04607612]
[1750625017628,0.2278773,2170.5,2170.1,0.0569]
[1750625018255,0.2278773,2170.5,2169.9,10.0]
[1750625018460,0.2278773,2170.5,2170.0,2.65474346]
[1750625020248,0.2278773,2170.5,2170.0,2.59784346]
[1750625020448,1.7087,2170.4,2169.5,11.82531945]
[1750625020702,1.7087,2170.4,2169.6,10.0]
[1750625020852,1.7087,2170.2,2169.2,8.20998242]
[1750625021037,1.7087,2170.2,2169.2,0.0569]
[1750625021244,1.6501,2169.9,2169.1,10.0]
[1750625021955,2.2001,2169.6,2168.6,8.4339]
[1750625022267,1.6501,2169.6,2169.0,11.3698677]
[1750625022471,1.6501,2169.6,2169.1,2.14267677]
[1750625023130,1.6501,2169.6,2169.1,18.0]
[1750625023745,1.6501,2169.6,2169.1,18.0569]
[1750625024132,1.6501,2169.6,2169.1,18.0]
[1750625024332,1.6501,2169.6,2169.2,10.0]
[1750625026566,1.6501,2169.6,2169.1,10.0]
[1750625026770,0.0583,2169.5,2168.6,0.0579]
[1750625027272,1.6501,2169.6,2168.8,10.0]
[1750625029039,1.6501,2169.6,2169.2,0.0579]
[1750625029577,1.6501,2169.6,2169.3,0.0579]
[1750625029755,1.6501,2169.6,2169.1,10.0]
[1750625029960,1.6501,2169.6,2169.2,1.16269]
[1750625030155,1.6501,2169.6,2169.2,1.22059]
[1750625030560,1.6501,2169.6,2169.3,10.0579]
[1750625030870,11.624,2170.4,2169.5,0.0579]
[1750625030871,1.5417,2169.9,2169.5,0.0579]
[1750625031572,1.5417,2169.9,2169.3,18.37]
[1750625031787,1.5417,2169.9,2169.4,2.42005496]
[1750625033895,1.5417,2169.9,2169.5,0.04608895]
[1750625034190,1.5417,2169.9,2169.3,1.38553]
[1750625034351,1.5417,2169.9,2169.4,0.04609427]
[1750625034550,1.5417,2169.9,2169.4,0.10399427]
[1750625034747,1.5417,2169.9,2169.5,0.0579]
[1750625035354,11.074,2170.4,2169.7,10.0579]
[1750625035355,1.5417,2170.3,2169.7,10.0579]
[1750625035866,1.5417,2170.3,2169.7,18.4229]
[1750625036554,1.5417,2170.1,2169.5,0.47068488]
[1750625036790,1.6,2170.1,2169.2,10.0]
[1750625036998,1.6,2169.9,2169.2,1.385608]
[1750625037292,3.119,2169.8,2169.2,0.046096]
[1750625037495,1.5417,2169.9,2169.2,0.046096]
[1750625037681,1.5417,2169.9,2169.1,1.443463]
[1750625037885,1.5417,2169.9,2169.2,10.10536519]
[1750625038048,1.5417,2169.9,2169.2,20.10536519]
[1750625038262,0.7917,2169.9,2169.3,11.3698677]
[1750625038455,0.55,2170.4,2169.3,21.3698677]
[1750625038653,0.0583,2170.3,2169.4,0.04608767]
[1750625038884,0.0583,2170.3,2169.4,3.66499551]
[1750625039091,0.0583,2170.3,2169.5,4.66713576]
[1750625039277,3.119,2170.4,2169.7,10.0]
[1750625039476,0.0583,2170.3,2169.5,8.361]
[1750625039662,3.119,2170.4,2169.6,10.94008426]
[1750625039869,3.119,2170.4,2169.6,10.894]
[1750625040492,3.119,2170.4,2169.6,0.8361]
[1750625040714,0.6083,2170.3,2169.5,0.45259227]
[1750625040914,0.2278773,2170.5,2169.9,11.3698677]
[1750625041115,0.2278773,2170.5,2169.7,0.0579]
[1750625041116,0.0583,2170.4,2169.6,10.0]
[1750625041410,0.0583,2170.4,2169.7,2.13698677]
[1750625041411,1.1378,2170.3,2169.7,2.13698677]
[1750625041626,1.1378,2170.3,2169.6,8.359]
[1750625041922,0.2278773,2170.5,2169.1,19.802463]
[1750625041923,1.1378,2170.0,2169.1,19.802463]
[1750625042416,1.1378,2170.0,2169.3,4.66764578]
[1750625042720,1.1378,2170.4,2169.7,11.4277677]
[1750625042925,1.1961,2170.4,2169.7,8.358]
[1750625043083,1.1961,2170.4,2169.7,0.8358]
[1750625043290,1.1961,2170.4,2169.7,10.8358]
[1750625043630,1.1961,2170.4,2169.7,0.8358]
[1750625043782,1.1961,2170.4,2169.7,10.8358]
[1750625043982,1.1378,2170.4,2169.8,4.66653217]
[1750625044184,1.1378,2170.4,2169.7,12.2056677]
[1750625044185,1.1378,2170.4,2170.0,0.0579]
[1750625045277,1.1378,2170.4,2169.9,1.68721999]
[1750625045821,1.1961,2170.4,2169.9,1.68721999]
[1750625046420,1.1378,2170.4,2169.9,1.73329889]
[1750625046643,1.1378,2170.4,2169.9,1.74511999]
[1750625046829,1.1378,2170.4,2170.0,1.174512]
[1750625047949,1.1378,2170.4,2170.1,1.385122]
[1750625048266,1.1961,2170.4,2169.9,1.68721999]
[1750625048464,0.0583,2170.3,2169.9,1.385263]
[1750625048659,1.1378,2170.2,2169.9,1.385263]
[1750625048831,1.1961,2170.2,2169.4,8.4099]
[1750625049032,1.1378,2170.0,2169.6,1.1378]
[1750625049243,0.0583,2169.9,2169.0,0.0579]
[1750625049447,1.1378,2169.8,2169.2,11.3698677]
[1750625049937,1.1378,2169.8,2169.4,0.0579]
[1750625050142,1.1378,2169.8,2169.3,10.0460887]
[1750625050143,1.1378,2170.1,2169.5,11.4277677]
[1750625050451,1.1378,2170.1,2169.7,0.0579]
[1750625050654,1.1378,2170.1,2169.6,14.60902955]
[1750625050829,1.1378,2170.1,2169.8,0.0579]
[1750625051440,1.1378,2170.4,2169.8,16.08244318]
[1750625051666,1.1378,2170.4,2169.8,19.7767677]
[1750625051829,1.1378,2170.4,2170.0,0.0579]
[1750625052036,1.1378,2170.4,2170.1,0.0579]
[1750625052239,0.2278773,2170.5,2170.3,0.0579]
[1750625053293,0.2278773,2170.5,2170.1,11.3698677]
[1750625053447,0.2278773,2170.5,2170.2,1.34957677]
[1750625054038,0.2278773,2170.5,2170.2,1.29167677]
[1750625054238,0.2278773,2170.5,2169.9,11.1378]
[1750625054239,0.2278773,2170.5,2170.0,0.04607466]
[1750625054599,0.2278773,2170.5,2169.9,15.74624273]
[1750625055123,0.2278773,2170.5,2170.4,27.52421333]
[1750625055273,0.2278773,2170.5,2170.4,35.92621333]
[1750625055610,0.2862773,2170.5,2170.4,0.46463452]
[1750625055971,0.2862773,2170.5,2169.9,1.1378]
[1750625056172,0.2862773,2170.5,2170.0,10.0]
[1750625056684,0.2278773,2170.5,2170.0,10.0]
[1750625056884,0.2278773,2170.5,2170.2,10.0]
[1750625057198,0.2278773,2170.5,2170.4,16.03431333]
[1750625057364,0.2278773,2170.5,2170.4,11.4268677]
[1750625057568,0.2278773,2170.5,2170.4,14.48856509]
[1750625057753,0.2278773,2170.5,2170.4,29.09601072]
[1750625058161,0.2278773,2170.5,2170.4,11.3698677]
[1750625058352,0.2278773,2170.5,2170.3,7.81097509]
[1750625058558,0.2278773,2170.5,2170.3,19.18084279]
[1750625058808,0.2278773,2170.5,2170.4,6.7347621]
[1750625059101,0.2278773,2170.5,2170.4,10.42125428]
[1750625059257,0.2278773,2170.5,2170.4,15.02869991]
[1750625059602,1.1378,2171.6,2170.5,6.23893335]
[1750625059905,1.1378,2171.6,2171.0,11.3698677]
[1750625060196,0.0584,2171.5,2170.7,11.3698677]
[1750625060350,1.1378,2171.4,2170.6,8.339]
[1750625060554,0.0584,2171.3,2170.7,0.04606169]
[1750625061367,1.1378,2171.4,2170.8,4.60656629]
[1750625061577,1.1378,2171.4,2170.9,4.60635282]
[1750625061898,1.1378,2171.4,2171.0,8.336]
[1750625062521,1.1962,2171.4,2171.0,8.336]
[1750625063211,0.0584,2171.3,2171.0,8.336]
[1750625063512,1.1378,2171.4,2171.0,8.336]
[1750625064317,1.1378,2171.4,2171.1,0.04605382]
[1750625064497,1.1378,2171.7,2171.1,1.98045215]
[1750625065104,0.0584,2172.7,2171.7,1.5319]
[1750625065405,1.1378,2172.9,2171.8,19.80149816]
[1750625065601,1.1378,2172.9,2171.9,4.65028583]
[1750625065918,1.1378,2172.9,2171.9,1.383665]
[1750625066225,3.1404,2173.0,2172.0,8.332]
[1750625066226,1.1962,2172.5,2172.0,8.332]
[1750625066385,1.1378,2172.4,2171.9,1.383665]
[1750625066577,1.1378,2172.2,2171.3,10.0]
[1750625066773,1.1378,2172.2,2171.6,1.384163]
[1750625067512,1.1378,2172.2,2171.6,9.713163]
[1750625067898,0.2862773,2172.6,2171.6,9.713163]
[1750625067899,0.2278773,2172.6,2172.0,10.0]
[1750625068100,0.2278773,2172.6,2172.5,16.29599194]
[1750625068275,1.1378,2173.6,2172.5,20.021]
[1750625068476,1.1378,2173.6,2172.9,11.3698677]
[1750625068707,1.1378,2173.6,2173.0,8.374012]
[1750625069005,1.1378,2173.6,2173.0,8.328]
[1750625069370,1.1378,2173.6,2173.0,8.79194937]
[1750625070995,0.0584,2173.5,2172.5,1.6404]
[1750625071213,0.0584,2173.5,2172.5,11.3698677]
[1750625071214,1.1378,2173.4,2172.5,11.3698677]
[1750625071430,1.1378,2173.4,2172.9,4.60195214]
[1750625071593,1.1378,2173.4,2172.8,25.91973827]
[1750625072411,1.1962,2173.4,2172.9,8.322]
[1750625072591,1.1962,2173.4,2172.5,20.30777677]
[1750625072592,0.0584,2173.3,2172.5,20.30777677]
[1750625072785,0.0584,2173.3,2172.5,8.77297677]
[1750625072990,0.0584,2173.1,2172.2,8.321]
[1750625073326,1.1378,2173.0,2172.2,8.321]
[1750625073522,1.1378,2173.0,2171.9,1.5348]
[1750625073523,0.0584,2172.9,2171.9,1.5348]
[1750625073677,1.1378,2173.0,2171.9,8.78354146]
[1750625073678,0.0584,2172.6,2171.9,8.78354146]
[1750625073877,3.1004,2172.6,2171.9,0.46254146]
[1750625074124,0.0584,2172.4,2171.6,1.384163]
[1750625074416,0.0584,2172.2,2171.6,1.384163]
[1750625074581,0.0584,2172.2,2171.2,9.8528]
[1750625074782,0.0584,2172.2,2171.3,2.78198394]
[1750625074976,0.0584,2172.2,2171.5,1.1378]
[1750625075174,3.1004,2172.2,2171.5,1.1378]
[1750625075714,3.1004,2172.2,2171.5,1.59508897]
[1750625075908,1.6878,2172.1,2171.5,1.1378]
[1750625076109,1.6878,2172.1,2170.8,23.9765677]
[1750625076110,0.0584,2172.0,2171.1,8.318]
[1750625076301,0.0584,2172.0,2171.1,9.61041231]
[1750625076699,11.3698677,2172.8,2171.1,9.61041231]
[1750625076700,1.1962,2172.4,2171.4,11.3698677]
[1750625077127,0.0584,2172.3,2171.5,4.60495372]
[1750625077508,0.0584,2172.3,2171.6,0.04604184]
[1750625078251,1.1962,2172.6,2172.1,4.60366202]
[1750625078403,1.1962,2172.6,2172.0,0.04603433]
[1750625079198,1.1378,2173.0,2172.4,11.3698677]
[1750625079402,1.1378,2173.4,2172.8,4.60235639]
[1750625079638,1.1378,2173.4,2172.9,0.04601594]
[1750625079835,1.1378,2173.4,2173.0,11.3698677]
[1750625080035,1.1378,2173.4,2173.1,4.64771378]
[1750625080242,0.0584,2174.0,2173.3,11.3698677]
[1750625080443,0.0584,2174.0,2173.4,0.04600301]
[1750625080847,0.0584,2174.0,2173.3,19.6828677]
[1750625080999,1.1378,2174.1,2173.6,11.3698677]
[1750625081198,1.1378,2174.1,2173.7,0.04599988]
[1750625081632,1.1378,2174.1,2173.6,11.3698677]
[1750625081844,1.1962,2174.1,2173.6,11.3698677]
[1750625082152,1.1962,2174.1,2173.3,12.5076677]
[1750625082332,1.1962,2174.1,2173.3,16.44839078]
[1750625082508,1.1962,2174.1,2173.3,11.3698677]
[1750625082710,1.1962,2174.1,2173.4,0.04600259]
[1750625082920,1.1962,2174.1,2173.3,12.7528057]
[1750625083836,0.0584,2174.1,2173.4,11.57640539]
[1750625084040,0.0584,2174.1,2173.5,0.49338485]
[1750625084230,0.0584,2174.1,2173.6,11.41587029]
[1750625084449,0.0584,2174.1,2173.7,0.04599919]
[1750625085027,0.0576,2174.1,2173.5,8.308]
[1750625085222,0.0576,2174.3,2173.6,11.3698677]
[1750625085511,0.0576,2174.4,2173.7,0.0459992]
[1750625085716,0.0576,2174.4,2173.6,14.79775952]
[1750625085717,0.0576,2174.0,2173.6,14.79775952]
[1750625085941,1.1378,2174.1,2173.6,11.3698677]
[1750625086452,1.1954,2174.1,2173.6,11.3698677]
[1750625086742,1.1954,2174.1,2173.7,0.04599918]
[1750625087546,0.0576,2174.0,2173.6,11.3698677]
[1750625087934,0.0576,2174.0,2173.1,8.303]
[1750625088112,0.0576,2174.0,2173.2,11.1962]
[1750625088457,1.1378,2173.7,2172.5,1.5326]
[1750625088614,0.0576,2173.0,2172.4,1.1378]
[1750625089046,0.0576,2173.0,2172.3,11.3698677]
[1750625089223,0.0576,2173.0,2172.3,12.96723732]
[1750625089726,0.0576,2173.0,2172.0,17.43879732]
[1750625089929,1.1378,2173.1,2172.0,12.83489733]
[1750625089930,0.0576,2172.7,2172.0,12.83489733]
[1750625090870,1.1954,2173.3,2172.6,11.3698677]
[1750625091054,1.1954,2173.3,2172.9,11.3698677]
[1750625091359,1.1378,2173.3,2172.9,11.3698677]
[1750625091657,0.0576,2173.7,2173.0,4.64792699]
[1750625091658,1.1378,2173.6,2173.0,4.64792699]
[1750625091820,1.1378,2173.6,2173.0,0.04601262]
[1750625092022,1.1378,2173.6,2173.0,4.64791291]
[1750625092226,1.1378,2173.6,2173.0,4.60190029]
[1750625092765,1.1378,2173.6,2172.4,1.6627]
[1750625092953,1.1378,2173.6,2173.0,13.52393587]
[1750625093132,1.1954,2173.6,2173.1,0.04601145]
[1750625093839,1.1954,2173.6,2173.0,13.52393587]
[1750625094041,1.1954,2173.6,2173.1,8.298]
[1750625094430,1.1378,2173.6,2173.1,10.98694971]
[1750625095555,1.1378,2173.9,2173.2,14.60149892]
[1750625096234,1.1378,2173.9,2173.2,10.0]
[1750625096440,1.1954,2173.9,2173.2,10.0]
[1750625097049,1.1954,2173.9,2173.1,10.98694971]
[1750625097363,1.1954,2173.9,2173.1,8.298]
[1750625098464,1.1954,2173.9,2173.0,13.98941529]
[1750625098753,1.1954,2173.9,2173.0,22.28141529]
[1750625098954,1.1954,2173.9,2173.0,13.98941529]
[1750625099159,1.1954,2173.9,2173.0,22.28141529]
[1750625099530,1.1954,2173.9,2173.1,0.04601228]
[1750625099751,1.1954,2173.9,2173.0,24.96977973]
[1750625100461,1.1954,2173.9,2173.4,13.52393587]
[1750625100462,1.1378,2173.9,2173.4,13.52393587]
[1750625100672,3.041,2174.1,2172.2,1.6488]
[1750625100673,0.6076,2173.4,2172.2,1.6488]
[1750625100821,4.1984,2173.3,2172.2,8.76200136]
[1750625101024,1.1378,2173.3,2173.0,13.52393587]
[1750625101422,1.1378,2173.7,2173.0,18.1258324]
[1750625101660,1.1378,2173.7,2173.0,13.52393587]
[1750625101842,1.6878,2173.5,2172.6,18.289]
[1750625102025,1.1378,2173.3,2172.9,13.52393587]
[1750625103530,1.1378,2173.7,2172.9,21.81193587]
[1750625103874,1.1378,2173.7,2172.9,8.288]
[1750625103875,0.0576,2173.6,2172.9,8.288]
[1750625104480,1.1378,2173.7,2172.6,16.87010946]
[1750625104481,0.0576,2173.4,2172.6,16.87010946]
[1750625104829,1.1378,2173.5,2172.7,4.60241594]
[1750625105025,1.1378,2173.5,2172.8,15.49582675]
[1750625105250,1.1378,2173.5,2172.8,10.89353029]
[1750625106479,1.1378,2173.5,2172.8,8.286]
[1750625107249,1.1378,2173.9,2173.0,13.52393587]
[1750625107555,1.1378,2173.9,2173.1,8.33100902]
[1750625107778,1.1378,2173.9,2173.1,8.285]
[1750625108701,0.0576,2173.7,2173.1,8.285]
[1750625109358,0.0576,2173.7,2173.0,0.4619694]
[1750625109584,1.1378,2173.6,2172.8,8.283]
[1750625109766,1.1378,2173.6,2172.9,3.52809598]
[1750625110366,1.1378,2173.6,2173.1,13.53483587]
[1750625110581,1.1378,2173.6,2173.2,8.281]
[1750625111652,1.1378,2173.6,2173.3,0.04600613]
[1750625111854,1.1378,2173.6,2173.2,8.281]
[1750625112052,1.1378,2173.6,2173.3,2.41662737]
[1750625112250,1.1378,2173.6,2173.2,8.281]
[1750625112978,0.0576,2173.5,2172.3,1.5895]
[1750625113185,1.1378,2173.4,2172.6,13.52393587]
[1750625113488,1.1378,2173.4,2172.9,4.60199502]
[1750625113703,1.1378,2173.7,2173.0,22.31904533]
[1750625113903,1.1378,2173.7,2173.0,0.4601995]
[1750625114070,0.55,2173.3,2172.3,1.5786]
[1750625114268,1.1378,2173.4,2172.5,11.33459572]
[1750625114598,1.1378,2173.4,2172.6,0.04601976]
[1750625114887,4.1408,2173.4,2172.5,11.33459572]
[1750625115056,4.1408,2173.4,2172.6,1.59484967]
[1750625116481,4.1408,2173.4,2172.5,11.33459572]
[1750625116695,1.1378,2173.4,2172.6,0.04602]
[1750625116903,1.1378,2173.4,2172.5,11.33459572]
[1750625117055,1.1378,2173.1,2172.2,12.27514839]
[1750625117262,1.1378,2173.1,2172.3,8.275]
[1750625117474,1.1378,2173.1,2172.3,9.90026549]
[1750625117671,1.1993,2172.9,2172.2,0.46855131]
[1750625117873,1.1993,2172.9,2172.0,8.275]
[1750625117874,1.1378,2172.8,2172.0,8.275]
[1750625118071,1.1378,2172.8,2171.9,11.33459572]
[1750625118284,0.55,2172.7,2171.9,11.33459572]
[1750625118486,0.0615,2172.6,2171.9,19.60859572]
[1750625118681,1.1378,2173.0,2172.2,11.33459572]
[1750625118887,1.1378,2173.0,2172.3,8.32002312]
[1750625119193,1.1378,2172.8,2172.2,18.0]
[1750625119519,1.1993,2172.6,2172.2,18.0]
[1750625119861,0.0615,2172.5,2172.2,18.0]
[1750625120056,0.0615,2172.3,2172.2,18.0]
[1750625120298,4.2023,2172.3,2172.2,18.0]
[1750625121090,4.2033,2172.3,2172.2,18.0]
[1750625121495,1.1378,2172.3,2171.7,20.07235179]
[1750625121797,1.1378,2172.3,2171.8,2.17278518]
[1750625122296,1.1378,2172.3,2171.7,19.60659572]
[1750625122297,1.1378,2172.3,2171.7,0.45124007]
[1750625122507,0.0615,2172.2,2171.3,9.9275]
[1750625122666,3.0655,2172.2,2171.4,10.0]
[1750625122870,1.1378,2172.1,2171.3,8.272]
[1750625123179,0.0615,2171.9,2171.0,12.84779572]
[1750625123388,0.0615,2171.9,2171.1,10.0174095]
[1750625123584,0.0615,2171.9,2171.2,0.0460505]
[1750625123782,1.1378,2171.8,2171.1,10.48865786]
[1750625124095,1.1378,2172.1,2171.3,11.34549572]
[1750625124601,1.1378,2172.1,2171.3,11.33459572]
[1750625124900,1.1378,2171.9,2171.1,0.47124836]
[1750625125197,1.1378,2171.9,2171.2,2.15791441]
[1750625125493,1.1378,2171.9,2171.0,19.60559572]
[1750625125700,1.1378,2171.9,2170.8,0.0109]
[1750625125914,1.1378,2171.7,2170.7,21.14369572]
[1750625126293,1.1378,2171.7,2170.2,4.82332828]
[1750625126294,1.1378,2171.3,2169.8,1.5381]
[1750625126603,1.1378,2170.9,2169.9,1.28726957]
[1750625126792,1.1378,2170.7,2169.9,1.28726957]
[1750625127366,1.1378,2170.4,2169.8,0.46248824]
[1750625127567,1.1378,2170.4,2169.5,8.269]
[1750625127778,1.1378,2170.1,2169.4,0.71997086]
[1750625128304,0.0615,2169.7,2168.7,11.33459572]
[1750625128611,0.0615,2169.7,2168.8,1.96942794]
[1750625128791,1.1378,2169.5,2168.8,1.96942794]
[1750625128963,1.1378,2169.5,2168.7,0.45110008]
[1750625129165,0.55,2169.6,2168.8,18.0]
[1750625129166,1.7493,2169.4,2168.8,18.0]
[1750625129370,1.7493,2169.4,2168.5,0.72123009]
[1750625129371,0.0615,2169.1,2168.5,0.72123009]
[1750625129586,0.0615,2169.1,2168.1,8.269]
[1750625129798,0.0615,2169.1,2168.2,11.38070641]
[1750625130115,0.0615,2169.1,2168.3,1.96497064]
[1750625130420,4.1438,2169.2,2167.7,4.6131663]
[1750625130421,0.0615,2168.8,2167.7,12.88504942]
[1750625130716,0.0615,2168.8,2167.8,4.61297167]
[1750625130932,1.1378,2168.7,2167.7,1.1866935]
[1750625131118,1.1378,2168.7,2167.6,4.61333022]
[1750625131119,3.0315,2168.6,2167.4,8.271]
[1750625131274,0.55,2168.5,2167.5,1.28850344]
[1750625131611,0.0615,2168.3,2167.6,0.0461269]
[1750625131907,0.0615,2168.3,2167.5,1.74553237]
[1750625131908,3.0315,2168.3,2167.5,1.28850344]
[1750625132110,1.1378,2167.7,2166.3,0.0109]
[1750625132295,1.1378,2167.7,2167.1,11.33459572]
[1750625132506,1.1378,2168.1,2167.4,11.33459572]
[1750625132672,1.1378,2168.1,2167.5,4.65966611]
[1750625133017,1.1378,2168.1,2167.4,11.33459572]
[1750625133221,1.1993,2168.1,2167.2,1.13345957]
[1750625133384,1.1378,2168.1,2167.3,4.66002804]
[1750625133590,1.1378,2168.1,2167.4,1.40624876]
[1750625133787,1.1378,2168.1,2167.6,4.61327584]
[1750625134021,1.1378,2168.1,2167.4,12.74084448]
[1750625134321,1.1378,2168.1,2167.4,1.40624876]
[1750625134682,1.1378,2168.1,2167.2,5.74763517]
[1750625135030,1.1378,2168.1,2167.4,4.61367115]
[1750625135168,1.1378,2168.1,2167.3,4.61386115]
[1750625135521,1.1378,2168.1,2167.2,11.14435957]
[1750625135674,1.1378,2168.1,2167.5,4.61340337]
[1750625135874,4.1098,2168.7,2167.7,13.59362642]
[1750625136075,1.1378,2168.7,2168.1,4.61219459]
[1750625136291,1.1378,2168.7,2168.2,0.04611361]
[1750625136491,1.1378,2168.7,2167.8,8.271]
[1750625136492,1.1993,2168.7,2167.8,8.271]
[1750625136914,0.0615,2168.5,2167.5,2.28669785]
[1750625137099,0.0615,2168.5,2167.5,4.61361014]
[1750625137402,0.0615,2168.3,2167.3,10.0]
[1750625137619,0.0615,2168.0,2167.2,1.13345957]
[1750625137908,2.973,2168.4,2166.7,4.61518508]
[1750625137909,0.0615,2167.6,2166.7,4.61518508]
[1750625138089,1.1378,2167.4,2166.4,1.6356]
[1750625138287,1.1378,2167.4,2166.5,1.45346411]
[1750625138725,0.0615,2167.3,2166.6,0.04614611]
[1750625138877,0.0615,2167.3,2166.6,0.04614675]
[1750625139077,1.1378,2167.4,2166.5,6.52914332]
[1750625139325,1.1378,2167.4,2166.6,4.61534843]
[1750625139614,1.1378,2167.4,2166.7,0.65288183]
[1750625139819,1.1378,2167.4,2166.7,5.26818997]
[1750625140180,1.1378,2167.4,2166.7,0.65288183]
[1750625140529,0.0615,2167.3,2166.5,0.46000581]
[1750625140819,0.0615,2167.3,2166.4,4.61595273]
[1750625141170,1.1378,2167.4,2166.7,0.0109]
[1750625141606,1.1378,2167.4,2166.9,4.61469024]
[1750625141924,1.1378,2167.4,2166.8,4.61501556]
[1750625142078,1.1378,2167.4,2166.9,5.07745475]
[1750625142394,1.1378,2167.4,2166.4,4.61589955]
[1750625142395,0.55,2167.2,2166.4,0.47187544]
[1750625142574,0.0615,2167.3,2166.2,4.84423058]
[1750625142779,2.974,2167.2,2166.4,4.61582418]
[1750625143004,2.974,2167.2,2166.3,4.61610793]
[1750625143180,2.974,2167.2,2166.4,1.48439852]
[1750625143710,2.974,2167.2,2166.4,1.93996875]
[1750625144009,2.974,2167.2,2166.5,4.6157307]
[1750625144187,2.974,2167.2,2166.4,6.55576003]
[1750625144608,2.974,2167.2,2166.2,0.2278773]
[1750625144609,0.55,2167.1,2166.2,0.2278773]
[1750625144811,1.1378,2166.8,2166.2,0.2278773]
[1750625145198,1.1378,2166.8,2166.3,4.66215499]
[1750625145516,1.1378,2166.8,2166.4,4.61594983]
[1750625145812,1.1378,2166.8,2166.5,0.04615053]
[1750625146299,1.1378,2166.8,2166.3,4.61609114]
[1750625146500,1.1378,2166.8,2166.3,6.26227993]
[1750625146705,1.1378,2166.8,2166.3,1.64617684]
[1750625146904,1.1378,2166.8,2166.2,0.2278773]
[1750625147212,1.1378,2166.8,2166.3,14.66214763]
[1750625147411,1.1378,2166.8,2166.3,14.61599592]
[1750625147911,1.1378,2166.8,2166.2,10.2278773]
[1750625148079,1.1378,2166.8,2166.2,0.2278773]
[1750625148286,1.1378,2166.8,2166.2,2.07776503]
[1750625148489,1.1378,2166.8,2166.2,0.2278773]
[1750625148713,0.0575,2166.5,2166.2,0.2278773]
[1750625149022,1.1378,2166.6,2166.2,0.2278773]
[1750625149397,1.1378,2166.6,2166.3,0.04615321]
[1750625149731,1.1378,2166.6,2166.3,4.66216616]
[1750625149922,1.1378,2166.6,2166.3,0.53624758]
[1750625150078,1.1378,2166.9,2166.4,4.61594694]
[1750625150282,1.1378,2166.9,2166.5,0.04614955]
[1750625151314,0.0575,2167.2,2166.5,0.04614955]
[1750625151315,1.1378,2167.2,2166.6,4.61552663]
[1750625151515,4.1138,2167.2,2166.7,0.04614316]
[1750625151979,1.1378,2167.2,2166.6,4.61552553]
[1750625152197,1.1378,2167.2,2166.7,0.04614361]
[1750625152413,1.1378,2167.2,2166.3,10.0]
[1750625152414,0.0575,2167.1,2166.4,0.04614831]
[1750625152600,0.0575,2167.1,2166.4,4.66201549]
[1750625152810,1.1378,2167.2,2166.4,0.04614831]
[1750625153015,1.1378,2167.2,2166.2,0.2278773]
[1750625153228,1.1378,2167.2,2166.3,0.04614359]
[1750625153427,0.0575,2167.1,2166.3,7.15133207]
[1750625153651,0.0575,2167.1,2166.3,4.66230436]
[1750625153941,3.0335,2167.1,2166.3,4.66230436]
[1750625154314,3.0335,2167.1,2166.3,0.04614359]
[1750625155202,1.1953,2167.0,2166.3,0.04615314]
[1750625155409,1.1953,2167.0,2166.2,0.2278773]
[1750625155603,1.1378,2166.8,2166.2,0.2278773]
[1750625155913,1.6878,2166.7,2166.2,0.2278773]
[1750625156425,0.0575,2166.6,2166.2,0.2278773]
[1750625156625,0.0575,2166.3,2166.2,0.2278773]
[1750625157549,1.7453,2166.3,2166.2,0.2278773]
[1750625157704,0.55,2166.3,2165.2,1.387315]
[1750625157909,0.55,2165.9,2164.9,0.0109]
[1750625158216,0.55,2165.7,2164.7,0.72236999]
[1750625158422,0.0575,2165.5,2164.7,0.72236999]
[1750625158717,0.55,2165.4,2164.2,2.976]
[1750625158911,0.55,2165.2,2164.3,1.388661]
[1750625159104,0.0575,2165.1,2164.4,0.04619734]
[1750625159328,2.976,2165.0,2164.4,10.04619734]
[1750625159529,0.0575,2165.1,2164.4,10.0]
[1750625159736,0.9933,2165.2,2164.6,16.02068527]
[1750625159901,12.0823,2165.6,2164.7,11.66798792]
[1750625160308,0.9933,2165.2,2164.4,1.6641]
[1750625160542,0.9933,2165.2,2164.5,4.66606348]
[1750625160706,0.9933,2165.2,2164.6,0.0613]
[1750625161108,4.6138345,2167.4,2164.4,13.00383912]
[1750625161109,0.0575,2166.2,2165.3,10.0]
[1750625161340,0.0575,2166.0,2164.7,0.0613]
[1750625161551,1.0508,2165.9,2164.9,14.61900227]
[1750625161856,1.0508,2165.9,2165.1,10.0]
[1750625161857,3.9968,2165.9,2165.1,10.0]
[1750625162339,3.9968,2165.9,2165.2,0.04617394]
[1750625162514,0.9933,2165.8,2164.7,0.0613]
[1750625162718,0.9933,2165.6,2164.8,0.046179]
[1750625163230,0.9933,2165.6,2164.7,0.0613]
[1750625163558,0.9933,2165.6,2164.7,2.20753391]
[1750625163841,0.55,2165.5,2164.7,2.14623391]
[1750625164014,0.55,2165.3,2164.4,0.0613]
[1750625164219,0.9933,2165.2,2164.4,0.0613]
[1750625164449,0.55,2165.0,2164.4,0.0613]
[1750625164647,2.947,2165.1,2164.4,0.10749058]
[1750625164817,2.947,2165.1,2164.4,3.23743247]
[1750625165235,0.9933,2165.2,2164.4,3.23743247]
[1750625165542,0.9933,2165.5,2164.9,10.0]
[1750625165730,0.0575,2165.4,2164.5,10.0613]
[1750625165938,0.0575,2165.4,2164.6,0.04618863]
[1750625166248,0.6075,2165.4,2164.6,0.04618626]
[1750625166542,0.9933,2165.5,2164.7,10.0613]